bitfinex-derivatives/quotes_BNBF0:USTF0_20250510
["timestamp","ask_amount","ask_price","bid_price","bid_amount"]
[1746838681111,0.29875717,669.44,667.44,0.2996524]
[1746838681709,0.2458979,669.43,667.44,0.2996524]
[1746838682010,0.29877055,669.41,667.44,0.2996524]
[1746838682410,0.2458979,669.4,667.44,0.2996524]
[1746838682609,0.29878394,669.38,667.44,0.2996524]
[1746838683108,0.2458979,669.37,667.44,0.2996524]
[1746838683305,0.29879734,669.35,667.44,0.2996524]
[1746838683813,0.2458979,669.34,667.44,0.2996524]
[1746838684014,0.29881073,669.32,667.44,0.2996524]
[1746838684208,0.2458979,669.31,667.44,0.2996524]
[1746838684414,0.29882412,669.29,667.44,0.2996524]
[1746838685015,0.2458979,669.28,667.44,0.2996524]
[1746838685214,0.29883752,669.26,667.44,0.2996524]
[1746838685814,0.2458979,669.25,667.44,0.2996524]
[1746838686017,0.29885091,669.23,667.44,0.2996524]
[1746838686615,0.2458979,669.22,667.44,0.2996524]
[1746838686817,0.2458979,669.21,667.44,0.2996524]
[1746838687514,0.2458979,669.2,667.44,0.2996524]
[1746838688218,0.2458979,669.19,667.44,0.2996524]
[1746838688516,0.2458979,669.18,667.44,0.2996524]
[1746838688920,0.2458979,669.17,667.44,0.2996524]
[1746838689219,0.2458979,669.16,667.44,0.2996524]
[1746838689617,0.29885091,669.23,667.44,0.2996524]
[1746838689618,0.2458979,669.15,667.44,0.2996524]
[1746838689918,0.2458979,669.14,667.44,0.2996524]
[1746838690318,0.2458979,669.13,667.44,0.2996524]
[1746838690614,0.2458979,669.12,667.44,0.2996524]
[1746838691013,0.2458979,669.11,667.44,0.2996524]
[1746838691320,0.2458979,669.1,667.44,0.2996524]
[1746838691614,0.2458979,669.09,667.44,0.2996524]
[1746838691814,0.2458979,669.22,667.44,0.2996524]
[1746838692720,0.29886431,669.2,667.44,0.2996524]
[1746838693019,0.2458979,669.19,667.44,0.2996524]
[1746838693219,0.29887771,669.17,667.44,0.2996524]
[1746838693819,0.2458979,669.16,667.44,0.2996524]
[1746838694019,0.29889111,669.14,667.44,0.2996524]
[1746838694614,0.2458979,669.13,667.44,0.2996524]
[1746838694819,0.29890451,669.11,667.44,0.2996524]
[1746838695517,0.2458979,669.1,667.44,0.2996524]
[1746838697324,0.29891791,669.08,667.44,0.2996524]
[1746838697623,0.2458979,669.07,667.44,0.2996524]
[1746838697825,0.29893132,669.05,667.44,0.2996524]
[1746838698624,0.2458979,669.04,667.44,0.2996524]
[1746838698819,0.29894472,669.02,667.44,0.2996524]
[1746838699327,0.2458979,669.01,667.44,0.2996524]
[1746838699526,0.29895813,668.99,667.44,0.2996524]
[1746838699929,0.2458979,668.98,667.44,0.2996524]
[1746838700228,0.29897153,668.96,667.44,0.2996524]
[1746838701029,0.2458979,668.95,667.44,0.2996524]
[1746838701230,0.29898494,668.93,667.44,0.2996524]
[1746838701931,0.2458979,668.92,667.44,0.2996524]
[1746838702130,0.29899835,668.9,667.44,0.2996524]
[1746838702631,0.2458979,668.89,667.44,0.2996524]
[1746838702829,0.29901176,668.87,667.44,0.2996524]
[1746838703828,0.24535735,668.86,667.44,0.2996524]
[1746838704232,0.29902517,668.84,667.44,0.2996524]
[1746838704530,0.24535735,668.83,667.44,0.2996524]
[1746838704831,0.29903859,668.81,667.44,0.2996524]
[1746838705331,0.24535735,668.8,667.44,0.2996524]
[1746838705531,0.299052,668.78,667.44,0.2996524]
[1746838706033,0.24535735,668.77,667.44,0.2996524]
[1746838706229,0.29906542,668.75,667.44,0.2996524]
[1746838706930,0.24535735,668.74,667.44,0.2996524]
[1746838707126,0.29907883,668.72,667.44,0.2996524]
[1746838707435,0.24535735,668.71,667.44,0.2996524]
[1746838707629,0.29909225,668.69,667.44,0.2996524]
[1746838708137,0.24535735,668.68,667.44,0.2996524]
[1746838708434,0.29910567,668.66,667.44,0.2996524]
[1746838708734,0.24535735,668.65,667.44,0.2996524]
[1746838708935,0.29911909,668.63,667.44,0.2996524]
[1746838709234,0.24535735,668.62,667.44,0.2996524]
[1746838709431,0.29913251,668.6,667.44,0.2996524]
[1746838709634,0.24535735,668.59,667.44,0.2996524]
[1746838710036,0.24535735,668.58,667.44,0.2996524]
[1746838712037,0.24535735,668.55,667.44,0.2996524]
[1746838712336,0.24535735,668.54,667.44,0.2996524]
[1746838712637,0.24535735,668.53,667.44,0.2996524]
[1746838713038,0.24535735,668.52,667.44,0.2996524]
[1746838713440,0.24535735,668.51,667.44,0.2996524]
[1746838713838,0.24535735,668.5,667.44,0.2996524]
[1746838714140,0.29918621,668.48,667.44,0.2996524]
[1746838714440,0.24535735,668.47,667.44,0.2996524]
[1746838714639,0.29919964,668.45,667.44,0.2996524]
[1746838715240,0.24535735,668.44,667.44,0.2996524]
[1746838715441,0.29921306,668.42,667.44,0.2996524]
[1746838715939,0.24535735,668.41,667.44,0.2996524]
[1746838716140,0.29922649,668.39,667.44,0.2996524]
[1746838716441,0.24535735,668.38,667.44,0.2996524]
[1746838716635,0.29923993,668.36,667.44,0.2996524]
[1746838717342,0.24535735,668.35,667.44,0.2996524]
[1746838717533,0.29925336,668.33,667.44,0.2996524]
[1746838717739,0.24535735,668.32,667.44,0.2996524]
[1746838717937,0.29926679,668.3,667.44,0.2996524]
[1746838718543,0.24535735,668.29,667.44,0.2996524]
[1746838718738,0.29928023,668.27,667.44,0.2996524]
[1746838719342,0.24535735,668.26,667.44,0.2996524]
[1746838719545,0.29929366,668.24,667.44,0.2996524]
[1746838720046,0.24535735,668.23,667.44,0.2996524]
[1746838720242,0.29930262,668.22,667.44,0.2996524]
[1746838720738,0.24535735,668.21,667.44,0.2996524]
[1746838720942,0.29931158,668.2,667.44,0.2996524]
[1746838721147,0.24535735,668.19,667.44,0.2996524]
[1746838721345,0.29932054,668.18,667.44,0.2996524]
[1746838721546,0.24535735,668.17,667.44,0.2996524]
[1746838721846,0.2993295,668.16,667.44,0.2996524]
[1746838722146,0.24363505,668.15,667.44,0.2996524]
[1746838722346,0.29933846,668.14,667.44,0.2996524]
[1746838726449,0.24353331,668.13,667.44,0.2996524]
[1746838743072,0.721,668.12,667.44,0.2996524]
[1746838743374,0.24353331,668.11,667.44,0.2996524]
[1746838751985,0.721,668.12,667.44,0.2996524]
[1746838752488,0.24157241,668.11,667.44,0.2996524]
[1746838752886,0.24157241,668.1,667.44,0.2996524]
[1746838753288,0.24157241,668.11,667.44,0.2996524]
[1746838755892,0.24157241,668.13,667.44,0.2996524]
[1746838758193,0.633,668.12,667.44,0.2996524]
[1746838758893,0.24157241,668.11,667.44,0.2996524]
[1746838760795,0.24157241,668.11,664.49,0.60501996]
[1746838760995,0.24157241,668.11,665.41,1.47994239]
[1746838761196,0.24157241,668.11,665.42,1.4799458]
[1746838761392,0.24157241,668.11,665.43,1.4799458]
[1746838761594,0.24157241,668.11,665.44,1.4799458]
[1746838761793,0.24157241,668.11,665.42,0.27553412]
[1746838761794,0.24157241,668.11,665.45,1.4799458]
[1746838761994,0.24157241,668.11,665.46,1.4799458]
[1746838762191,0.24157241,668.11,665.47,1.75547992]
[1746838762392,0.24157241,668.11,665.48,1.4799458]
[1746838762592,0.24157241,668.11,665.49,1.4799458]
[1746838762797,0.24157241,668.11,665.5,1.75547992]
[1746838762997,0.24157241,668.11,665.51,1.48032512]
[1746838763196,0.24157241,668.11,665.52,1.75585924]
[1746838763397,0.24157241,668.11,665.53,1.48058624]
[1746838763593,0.24157241,668.11,665.54,1.48058624]
[1746838763797,0.633,668.12,665.55,1.48058624]
[1746838763997,0.633,668.12,665.56,1.48058624]
[1746838764197,0.24002741,668.11,665.57,1.48058624]
[1746838764397,0.24002741,668.11,665.58,1.48058624]
[1746838764597,0.24002741,668.11,665.59,1.48058624]
[1746838764797,0.24002741,668.11,665.6,1.48058624]
[1746838764998,0.24002741,668.11,665.61,1.48058624]
[1746838765300,0.24002741,668.11,665.62,1.48058624]
[1746838765492,0.24002741,668.11,665.63,1.48058624]
[1746838765792,0.24002741,668.11,665.64,1.48058624]
[1746838765993,0.24002741,668.11,665.65,1.48058624]
[1746838766190,0.24002741,668.11,665.66,1.48058624]
[1746838766392,0.24002741,668.11,665.67,0.56684846]
[1746838766598,0.24002741,668.11,665.68,1.48100356]
[1746838766798,0.24002741,668.11,665.69,1.48100356]
[1746838767098,0.24002741,668.11,665.7,1.7565799]
[1746838767294,0.24002741,668.11,665.71,1.48100356]
[1746838767495,0.24002741,668.11,665.72,1.48100356]
[1746838767695,0.24002741,668.11,665.73,1.48100356]
[1746838767897,0.24002741,668.11,665.74,1.48100356]
[1746838768196,0.24002741,668.11,665.75,1.48100356]
[1746838768392,0.24002741,668.11,665.76,1.48100356]
[1746838768697,0.24002741,668.11,665.77,1.7565799]
[1746838768893,0.24002741,668.11,665.78,1.48100356]
[1746838769092,0.24002741,668.11,665.79,1.48100356]
[1746838769293,0.24002741,668.11,665.8,1.48100356]
[1746838769495,0.24002741,668.11,665.81,1.48100356]
[1746838769697,0.24002741,668.11,665.82,1.48100356]
[1746838769893,0.24002741,668.11,665.83,1.48100356]
[1746838770194,0.24002741,668.11,665.84,1.4803893]
[1746838770400,0.24002741,668.11,665.95,0.30032284]
[1746838770699,0.24002741,668.11,665.96,1.4803893]
[1746838770899,0.29935638,668.1,665.97,1.4803893]
[1746838771099,0.29935638,668.1,665.98,1.4803893]
[1746838771300,0.24002741,668.09,665.99,1.4803893]
[1746838771600,0.24002741,668.09,666.0,1.4803893]
[1746838771796,0.24002741,668.09,666.01,1.75593594]
[1746838772001,0.24002741,668.09,666.02,1.4803893]
[1746838772200,0.24002741,668.09,666.03,1.4803893]
[1746838772402,0.24002741,668.09,666.04,1.75593594]
[1746838772596,0.24002741,668.09,666.05,1.4803893]
[1746838772796,0.24002741,668.09,666.06,1.4803893]
[1746838773099,0.24002741,668.09,666.07,1.75593594]
[1746838773297,0.24002741,668.09,666.08,1.4803893]
[1746838773501,0.24002741,668.09,666.09,1.47947086]
[1746838773800,0.24002741,668.09,666.1,1.47947086]
[1746838774003,0.459,668.08,666.11,1.47947086]
[1746838774201,0.459,668.08,666.13,0.30024169]
[1746838774402,0.24002741,668.07,666.14,1.47947086]
[1746838774595,0.24002741,668.07,666.15,1.47947086]
[1746838774802,0.24002741,668.07,666.16,1.47948693]
[1746838775002,0.24002741,668.07,666.17,1.47948693]
[1746838775199,0.24002741,668.07,666.19,0.30021465]
[1746838775397,0.24002741,668.07,666.2,1.47948633]
[1746838775597,0.24002741,668.07,666.22,0.30020113]
[1746838775801,0.24002741,668.07,666.23,1.47948633]
[1746838775998,0.24002741,668.07,666.25,0.30018761]
[1746838776198,0.2993743,668.06,666.26,1.47948633]
[1746838776401,0.24002741,668.05,666.27,1.75501527]
[1746838776604,0.29938327,668.04,666.28,1.77966043]
[1746838776806,0.24002741,668.03,666.3,0.30016509]
[1746838776997,0.29939223,668.02,666.31,1.47948633]
[1746838777199,0.29939223,668.02,666.32,1.47948633]
[1746838777400,0.29939223,668.02,666.33,1.47948633]
[1746838777600,0.24002741,668.01,666.34,1.75501527]
[1746838777804,0.24002741,668.01,666.36,0.30013806]
[1746838778005,0.24002741,668.01,666.37,1.47948633]
[1746838778308,0.24002741,668.01,666.38,1.47948633]
[1746838778501,0.24002741,668.01,666.39,1.47948633]
[1746838778702,0.24002741,668.01,666.4,1.47947018]
[1746838779008,0.24002741,668.01,666.41,1.47947018]
[1746838779207,0.24002741,668.01,666.42,1.47947018]
[1746838779409,0.24002741,668.01,666.43,1.47947018]
[1746838779607,0.24002741,668.01,666.44,1.47947018]
[1746838779805,0.24002741,668.01,666.45,1.47947018]
[1746838780005,0.24002741,668.01,666.46,1.47947018]
[1746838780205,0.24002741,668.01,666.47,1.47947018]
[1746838780408,0.24002741,668.01,666.48,1.47947018]
[1746838780702,0.24002741,668.01,666.49,1.47947018]
[1746838781007,0.24002741,668.01,666.5,1.47947018]
[1746838781207,0.24002741,668.01,666.51,1.47947018]
[1746838781409,0.24002741,668.01,666.52,1.47947018]
[1746838781605,0.24002741,668.01,666.53,1.47947018]
[1746838781809,0.24002741,668.01,666.54,1.47947018]
[1746838782005,0.29939223,668.02,666.55,1.47947018]
[1746838782209,0.29939223,668.02,666.56,1.47918772]
[1746838782407,0.24055485,668.01,666.57,1.47915245]
[1746838782605,0.24055485,668.01,666.58,1.47915245]
[1746838782811,0.24055485,668.01,666.59,1.47915245]
[1746838783110,0.24055485,668.01,666.6,1.47915245]
[1746838783409,0.24055485,668.01,666.61,1.47915245]
[1746838783610,0.24055485,668.01,666.62,1.47915245]
[1746838783908,0.24055485,668.01,666.63,0.91276288]
[1746838784110,0.24055485,668.01,666.64,1.47872905]
[1746838784305,0.24055485,668.01,666.65,1.47872905]
[1746838784510,0.24055485,668.01,666.66,0.56596617]
[1746838784708,0.24055485,668.01,666.67,0.56596617]
[1746838784911,0.24055485,668.01,666.68,0.56596617]
[1746838785207,0.24055485,668.01,666.69,0.56596617]
[1746838785406,0.24055485,668.01,666.7,0.56596617]
[1746838785611,0.24055485,668.01,666.36,0.30013806]
[1746838785812,0.24055485,668.01,666.37,1.47829116]
[1746838786010,0.24055485,668.01,666.38,1.47829116]
[1746838786207,0.24055485,668.01,666.39,1.47829116]
[1746838786411,0.24055485,668.01,666.4,1.47829116]
[1746838786610,0.24055485,668.01,666.41,1.47829116]
[1746838786810,0.24055485,668.01,666.42,1.47829116]
[1746838787008,0.24055485,668.01,666.43,1.47829116]
[1746838787209,0.24055485,668.01,666.44,1.47829116]
[1746838787512,0.24055485,668.01,666.45,1.47832897]
[1746838787713,0.24055485,668.01,666.46,1.47832897]
[1746838787913,0.24055485,668.01,666.47,1.47832897]
[1746838788113,0.24055485,668.01,666.48,1.77841299]
[1746838788316,0.29940119,668.0,666.49,1.47832897]
[1746838788514,0.29940119,668.0,666.5,1.47832897]
[1746838788715,0.24055485,667.99,666.51,1.47832897]
[1746838788913,0.24055485,667.99,666.52,1.47832897]
[1746838789112,0.24055485,667.99,666.53,1.47832897]
[1746838789315,0.24055485,667.99,666.54,1.47829483]
[1746838789509,0.24055485,667.99,666.55,1.47829483]
[1746838789712,0.29941016,667.98,666.56,1.77834283]
[1746838789910,0.29941016,667.98,666.57,1.77833833]
[1746838790116,0.29941016,667.98,666.58,1.47829483]
[1746838790414,0.24055485,667.97,666.59,1.47829483]
[1746838790612,0.24055485,667.97,666.6,1.47829483]
[1746838790817,0.24055485,667.97,666.61,1.47829483]
[1746838791116,0.24055485,667.97,666.62,1.77831583]
[1746838791318,0.24055485,667.97,666.63,1.77831133]
[1746838791520,0.24055485,667.97,666.64,1.47829483]
[1746838791818,0.24055485,667.97,666.65,1.47829483]
[1746838792016,0.24055485,667.97,666.71,0.2999805]
[1746838792215,0.24055485,667.97,666.72,1.47829483]
[1746838792416,0.24055485,667.97,666.74,0.299967]
[1746838792614,0.459,668.08,666.75,1.47726718]
[1746838792815,0.459,668.08,666.77,0.2999535]
[1746838793018,0.459,668.08,666.78,1.47726718]
[1746838793215,0.459,668.08,666.8,0.29994001]
[1746838793420,0.459,668.08,666.81,1.47726718]
[1746838793618,0.459,668.08,666.83,0.29992651]
[1746838793814,0.459,668.08,666.84,1.47726718]
[1746838794113,0.459,668.08,666.86,0.29991302]
[1746838794419,0.459,668.08,666.87,1.47640522]
[1746838794615,0.459,668.08,666.89,0.29989953]
[1746838794815,0.459,668.08,666.9,1.47640522]
[1746838795014,0.459,668.08,666.92,0.29988604]
[1746838795215,1.91769355,668.79,666.93,1.47640522]
[1746838795416,0.29905647,668.77,666.94,1.77628227]
[1746838795620,0.24148301,668.76,666.95,1.77627777]
[1746838795815,0.29906989,668.74,666.96,1.77627327]
[1746838796021,0.29906989,668.74,666.97,1.47640522]
[1746838796321,0.24148301,668.73,666.98,1.77626428]
[1746838796621,0.2990833,668.71,666.99,1.77625979]
[1746838796920,0.24148301,668.7,667.0,1.77625529]
[1746838797121,0.24148301,668.7,667.01,1.77625079]
[1746838797321,0.24148301,668.7,665.52,0.60518948]
[1746838797322,0.29909672,668.68,667.02,1.7762463]
[1746838797521,0.29909672,668.68,667.03,1.7762418]
[1746838797714,0.24148301,668.67,667.12,0.29979613]
[1746838797914,0.29910567,668.66,667.13,1.47442579]
[1746838798116,0.29910567,668.66,667.14,1.77421294]
[1746838798319,0.29910567,668.66,667.15,1.77420844]
[1746838798518,0.29910567,668.66,667.16,1.77420395]
[1746838798722,0.24148301,668.65,667.17,1.77419946]
[1746838799021,0.24148301,668.65,667.18,1.77419496]
[1746838799218,0.591,668.64,667.19,1.77419047]
[1746838799415,0.591,668.64,667.2,1.77418598]
[1746838799619,0.591,668.64,667.21,1.77358544]
[1746838799820,0.24148301,668.63,667.22,1.77358095]
[1746838800116,0.24148301,668.63,667.23,1.77357646]
[1746838800320,0.24148301,668.63,667.24,1.77357197]
[1746838800619,0.24148301,668.63,667.25,1.77356747]
[1746838800819,0.29912356,668.62,667.26,1.77356298]
[1746838801018,0.29912356,668.62,667.27,1.47382975]
[1746838801218,0.24148301,668.61,667.28,1.47387463]
[1746838801420,0.29913251,668.6,667.29,1.47387463]
[1746838801620,0.29913251,668.6,667.3,1.47389325]
[1746838801819,0.29913251,668.6,667.31,0.56405426]
[1746838802023,0.24148301,668.59,667.32,0.56405426]
[1746838802327,0.29914146,668.58,667.33,1.47308593]
[1746838802523,0.29914146,668.58,667.34,0.56405426]
[1746838802721,0.24148301,668.57,667.26,0.29973323]
[1746838802923,0.29915041,668.56,667.27,1.4723519]
[1746838803124,0.29915041,668.56,667.28,1.4723519]
[1746838803320,0.29915041,668.56,667.3,0.29971527]
[1746838803524,0.29915041,668.56,667.31,1.4723519]
[1746838803720,0.24148301,668.55,667.32,1.77205818]
[1746838803925,0.24148301,668.55,667.33,1.77205369]
[1746838804125,0.24148301,668.55,667.34,1.7720492]
[1746838804327,0.24148301,668.55,667.35,1.77204471]
[1746838804631,0.29915041,668.56,667.36,1.77144547]
[1746838804828,0.29915041,668.56,667.37,1.47175715]
[1746838805024,0.29915041,668.56,667.38,1.47175715]
[1746838805225,0.29915041,668.56,667.36,0.29968832]
[1746838805226,0.29915041,668.56,667.39,1.47175715]
[1746838805423,0.29915041,668.56,667.4,1.47175715]
[1746838805627,0.29915041,668.56,667.41,1.47175715]
[1746838805827,0.29915041,668.56,667.42,1.46700821]
[1746838806027,0.29915041,668.56,667.43,1.46700821]
[1746838806223,0.24143449,668.55,667.44,1.46700821]
[1746838806430,0.24143449,668.55,667.45,1.46700172]
[1746838806731,0.24143449,668.55,667.46,1.46700172]
[1746838807029,0.24143449,668.55,667.51,0.29962097]
[1746838807229,0.29915041,668.56,667.52,1.46680283]
[1746838807529,0.29915041,668.56,667.54,0.29960751]
[1746838807830,0.29915041,668.56,667.55,1.46580594]
[1746838808023,0.29915041,668.56,667.57,0.29959405]
[1746838808224,0.29915041,668.56,667.58,1.46518401]
[1746838808429,0.29915041,668.56,667.6,0.29958058]
[1746838808630,0.29915041,668.56,667.61,0.90404409]
[1746838808831,0.29915041,668.56,667.62,1.2036157]
[1746838809024,0.29915041,668.56,667.62,0.29957161]
[1746838809224,0.29915041,668.56,667.63,1.20373245]
[1746838809428,0.29915041,668.56,667.64,1.20372796]
[1746838809629,0.29915041,668.56,667.64,0.29956263]
[1746838809830,0.29915041,668.56,667.65,0.90406855]
[1746838810036,0.29915041,668.56,667.66,0.29955366]
[1746838810736,0.29915041,668.56,667.67,0.90259218]
[1746838810938,0.29915041,668.56,667.68,1.76227597]
[1746838811237,0.29915041,668.56,667.69,1.20213238]
[1746838811437,0.29915041,668.56,667.7,1.20212789]
[1746838811636,0.29915041,668.56,667.71,1.20212341]
[1746838811934,0.29915041,668.56,667.72,1.20211892]
[1746838812132,0.29915041,668.56,667.73,1.20211444]
[1746838812335,0.29915041,668.56,667.74,0.29951777]
[1746838813338,0.29915041,668.56,667.75,0.90060499]
[1746838813538,0.29915041,668.56,667.76,0.90060499]
[1746838813838,0.29915041,668.56,667.77,1.20010931]
[1746838814037,0.29915041,668.56,667.78,0.90060499]
[1746838814236,0.29915041,668.56,667.79,1.19928053]
[1746838814437,0.29915041,668.56,667.79,0.29949535]
[1746838814641,0.29915041,668.56,667.8,0.89911092]
[1746838814836,0.29915041,668.56,667.81,0.89911092]
[1746838815033,0.29915041,668.56,667.82,0.29948189]
[1746838822343,0.24140275,668.55,667.82,0.29948189]
[1746838823745,0.29915041,668.56,667.82,0.29948189]
[1746838831752,0.2410312,668.55,667.82,0.29948189]
[1746838834754,0.29915041,668.56,667.82,0.29948189]
[1746838835457,0.2412089,668.55,667.82,0.29948189]
[1746838837455,0.29915041,668.56,667.82,0.29948189]
[1746838838156,0.24123759,668.55,667.82,0.29948189]
[1746838849867,0.29915041,668.56,667.82,0.29948189]
[1746838856570,0.29915041,668.56,667.83,0.56360914]
[1746838856765,0.29915041,668.56,667.84,0.56360914]
[1746838856962,0.29915041,668.56,667.82,0.29948189]
[1746838857164,0.29915041,668.56,667.83,0.56360894]
[1746838857370,0.29915041,668.56,667.84,0.56360894]
[1746838857569,0.29915041,668.56,667.85,0.56360894]
[1746838857772,0.29915041,668.56,667.82,0.29948189]
[1746838857972,0.29915041,668.56,667.83,0.56374001]
[1746838858165,0.29915041,668.56,667.84,0.56374001]
[1746838858366,0.29915041,668.56,667.85,0.56374001]
[1746838858671,0.29915041,668.56,667.82,0.29948189]
[1746838858871,0.29915041,668.56,667.83,0.56363322]
[1746838859070,0.29915041,668.56,667.84,0.56363322]
[1746838859270,0.29915041,668.56,667.85,0.56363322]
[1746838859474,0.29915041,668.56,667.82,0.29948189]
[1746838859670,0.29915041,668.56,667.83,0.56358212]
[1746838859866,0.29915041,668.56,667.84,0.56358212]
[1746838860071,0.29915041,668.56,667.85,0.56358212]
[1746838860369,0.29915041,668.56,667.86,0.56358212]
[1746838860564,0.29915041,668.56,667.82,0.29948189]
[1746838860766,0.29915041,668.56,667.83,0.56357552]
[1746838860971,0.29915041,668.56,667.84,0.56357552]
[1746838861167,0.29915041,668.56,667.85,0.56357552]
[1746838861373,0.29915041,668.56,667.86,0.56357552]
[1746838861576,0.29915041,668.56,667.87,0.56357552]
[1746838861775,0.29915041,668.56,667.88,0.56357552]
[1746838862075,0.29915041,668.56,667.89,0.56357552]
[1746838862372,0.29915041,668.56,667.9,1.47228689]
[1746838862574,0.29915041,668.56,667.91,0.56357552]
[1746838862773,0.29915041,668.56,667.92,0.56357552]
[1746838862973,0.29915041,668.56,667.93,0.56357552]
[1746838863278,0.29915041,668.56,667.94,0.56301558]
[1746838863476,0.29915041,668.56,667.95,0.56301558]
[1746838863773,0.29915041,668.56,667.96,0.56301558]
[1746838863974,0.29915041,668.56,667.97,0.56306907]
[1746838864174,0.29915041,668.56,667.82,0.29948189]
[1746838864374,0.29915041,668.56,667.83,1.47130907]
[1746838864574,0.29915041,668.56,667.84,1.47130907]
[1746838864774,0.29915041,668.56,667.85,1.47130907]
[1746838864976,0.29915041,668.56,667.86,1.47130907]
[1746838865175,0.29915041,668.56,667.87,1.47130907]
[1746838865371,0.29915041,668.56,667.88,1.47130907]
[1746838865575,0.29915041,668.56,667.89,1.47130907]
[1746838865774,0.29915041,668.56,667.9,1.47115603]
[1746838865970,0.29915041,668.56,667.91,1.47115603]
[1746838866177,0.29915041,668.56,667.92,0.56306579]
[1746838866377,0.29915041,668.56,667.93,0.56306579]
[1746838866676,0.29915041,668.56,667.94,0.56306579]
[1746838866878,0.29915041,668.56,667.95,0.56306579]
[1746838867076,0.29915041,668.56,667.96,0.56306579]
[1746838867277,0.29915041,668.56,667.97,0.56306579]
[1746838867477,0.29915041,668.56,667.98,0.56306579]
[1746838867678,0.29915041,668.56,667.99,1.47097437]
[1746838867871,0.29915041,668.56,668.0,1.47097437]
[1746838868077,0.29915041,668.56,668.01,1.47097437]
[1746838868277,0.29915041,668.56,668.02,1.47097437]
[1746838868470,0.29915041,668.56,668.03,1.47097437]
[1746838868674,0.29915041,668.56,668.04,1.46980767]
[1746838868872,0.29915041,668.56,668.05,1.46980767]
[1746838869077,0.29915041,668.56,668.06,1.46980767]
[1746838869275,0.29915041,668.56,668.07,1.46980767]
[1746838869578,0.29915041,668.56,668.08,1.46980767]
[1746838869775,0.29915041,668.56,668.09,1.46980767]
[1746838870073,0.29915041,668.56,668.1,1.46980767]
[1746838870275,0.29915041,668.56,668.11,1.46980767]
[1746838870480,0.29915041,668.56,668.12,1.46908288]
[1746838870676,0.29915041,668.56,668.13,1.46908288]
[1746838870876,0.29915041,668.56,668.14,1.46908288]
[1746838871082,0.29915041,668.56,668.15,1.46908288]
[1746838871282,0.29915041,668.56,668.16,1.46908288]
[1746838871580,0.29915041,668.56,668.17,1.46626662]
[1746838871783,0.29915041,668.56,668.18,1.46583672]
[1746838871981,0.29915041,668.56,668.19,1.46583672]
[1746838872178,0.29915041,668.56,668.2,1.4658406]
[1746838872381,0.29915041,668.56,668.21,1.4658406]
[1746838872681,0.29915041,668.56,668.22,1.4658406]
[1746838872882,0.29915041,668.56,668.23,1.4658406]
[1746838873181,0.29915041,668.56,668.24,1.4658406]
[1746838873377,0.29915041,668.56,668.25,1.4658406]
[1746838873581,0.29915041,668.56,668.26,1.4658406]
[1746838873784,0.29915041,668.56,668.27,1.4658406]
[1746838873984,0.29915041,668.56,668.28,1.4658406]
[1746838874179,0.29915041,668.56,668.29,1.4658406]
[1746838874385,0.29915041,668.56,668.3,1.4658406]
[1746838874586,0.29915041,668.56,668.31,1.4658406]
[1746838874783,0.29915041,668.56,668.32,1.46393983]
[1746838874983,0.29915041,668.56,668.33,1.46277542]
[1746838875184,0.29915041,668.56,668.34,0.90318803]
[1746838875383,0.29915041,668.56,668.35,1.46276916]
[1746838875682,0.29915041,668.56,668.36,1.46276916]
[1746838875879,0.29915041,668.56,668.37,1.46276916]
[1746838876079,0.29915041,668.56,668.38,1.46276916]
[1746838876283,0.29915041,668.56,668.39,1.46276916]
[1746838876582,0.29915041,668.56,668.4,1.46222094]
[1746838876782,0.29915041,668.56,668.41,1.46222094]
[1746838876983,0.29915041,668.56,668.42,1.46222094]
[1746838877285,0.29915041,668.56,668.43,1.46127988]
[1746838877487,0.29915041,668.56,668.44,1.46127988]
[1746838877682,0.29915041,668.56,668.45,1.46127988]
[1746838877887,0.29915041,668.56,668.46,1.46127988]
[1746838878086,0.29915041,668.56,668.47,1.46127988]
[1746838878286,0.29915041,668.56,668.48,1.46127988]
[1746838878486,0.29915041,668.56,668.49,1.46127988]
[1746838878685,0.29915041,668.56,668.5,1.4591384]
[1746838878982,0.11366349,668.66,668.51,1.4591384]
[1746838879190,1.91769355,671.48,668.52,1.4591384]
[1746838879380,1.91769355,671.48,668.53,1.4591384]
[1746838879584,0.24296125,671.47,668.54,0.83272909]
[1746838879788,0.24296125,671.47,668.55,0.87522586]
[1746838880088,1.91769355,671.48,668.56,0.87517377]
[1746838880089,0.24296125,671.46,668.56,0.87517377]
[1746838880289,0.24296125,671.46,668.57,0.87517377]
[1746838880489,0.24296125,671.46,668.58,0.87517377]
[1746838880687,0.24296125,671.45,668.71,0.2990833]
[1746838880886,0.24296125,671.45,668.72,0.87517377]
[1746838881089,0.24296125,671.44,668.73,0.87517377]
[1746838881289,0.24296125,671.43,668.74,1.14970121]
[1746838881486,0.29787614,671.42,668.75,0.87517377]
[1746838881690,0.54083739,671.42,668.76,0.87517377]
[1746838881891,0.54083739,671.42,668.77,0.87517377]
[1746838882091,0.24296125,671.41,668.71,0.2990833]
[1746838882291,0.24296125,671.41,668.72,0.86998374]
[1746838882493,0.24296125,671.4,668.71,0.2990833]
[1746838882793,0.24296125,671.39,668.72,0.86985543]
[1746838883090,0.24296125,671.39,668.71,0.2990833]
[1746838883391,0.24296125,671.38,668.71,0.2990833]